[Event "*** Titled Tuesday Blitz"]
[Site "Chess.com"]
[Date "2020.04.28"]
[Round "4"]
[White "LuckIsMySkill"]
[Black "KinKaiser"]
[Result "0-1"]
[WhiteElo "2707"]
[BlackElo "2531"]
[TimeControl "180+1"]
[EndTime "10:42:05 PDT"]
[Termination "KinKaiser won on time"]

1. f4 {[%clk 0:03:00.9]} 1... d5 {[%clk 0:02:59]} 2. Nf3 {[%clk 0:02:59.9]} 2...
Nf6 {[%clk 0:02:59.1]} 3. e3 {[%clk 0:02:59.8]} 3... Bf5 {[%clk 0:02:57.7]} 4.
c4 {[%clk 0:02:59.5]} 4... c6 {[%clk 0:02:55.1]} 5. Nc3 {[%clk 0:02:59.2]} 5...
e6 {[%clk 0:02:54.4]} 6. d4 {[%clk 0:02:57.8]} 6... Nbd7 {[%clk 0:02:52.3]} 7.
Bd3 {[%clk 0:02:54.3]} 7... Bb4 {[%clk 0:02:35.2]} 8. O-O {[%clk 0:02:39.3]}
8... O-O {[%clk 0:02:34.6]} 9. Ne5 {[%clk 0:02:38.5]} 9... Bxd3 {[%clk 0:02:27]}
10. Qxd3 {[%clk 0:02:37.9]} 10... a5 {[%clk 0:02:23.6]} 11. Bd2 {[%clk
0:02:31.8]} 11... Bxc3 {[%clk 0:02:02.7]} 12. Bxc3 {[%clk 0:02:29.3]} 12... Nxe5
{[%clk 0:02:02.2]} 13. fxe5 {[%clk 0:02:29.1]} 13... Ne4 {[%clk 0:02:02.1]} 14.
Rf4 {[%clk 0:02:20.8]} 14... f5 {[%clk 0:01:56.9]} 15. exf6 {[%clk 0:02:20.2]}
15... Rxf6 {[%clk 0:01:56.9]} 16. Raf1 {[%clk 0:02:17.2]} 16... Rxf4 {[%clk
0:01:56.7]} 17. Rxf4 {[%clk 0:02:18.1]} 17... a4 {[%clk 0:01:52.8]} 18. Bb4
{[%clk 0:02:16.4]} 18... Qg5 {[%clk 0:01:45.9]} 19. Qf1 {[%clk 0:02:10.1]} 19...
h6 {[%clk 0:01:42.8]} 20. h4 {[%clk 0:02:06.6]} 20... Qg3 {[%clk 0:01:37.4]} 21.
Qf3 {[%clk 0:02:06.4]} 21... Qg6 {[%clk 0:01:30.8]} 22. h5 {[%clk 0:01:41.4]}
22... Qg5 {[%clk 0:01:30.3]} 23. Rg4 {[%clk 0:01:41.2]} 23... Qf6 {[%clk
0:01:13.2]} 24. Rg6 {[%clk 0:01:39.4]} 24... Qxf3 {[%clk 0:01:11]} 25. gxf3
{[%clk 0:01:40.3]} 25... Nf6 {[%clk 0:01:11.2]} 26. e4 {[%clk 0:01:23.2]} 26...
Kf7 {[%clk 0:01:00.5]} 27. cxd5 {[%clk 0:01:00.5]} 27... cxd5 {[%clk 0:00:59.8]}
28. e5 {[%clk 0:00:51.2]} 28... Nxh5 {[%clk 0:00:58.4]} 29. Rg2 {[%clk
0:00:52.1]} 29... Rc8 {[%clk 0:00:55.8]} 30. Bc3 {[%clk 0:00:48.7]} 30... g5
{[%clk 0:00:51.9]} 31. Kf2 {[%clk 0:00:48.2]} 31... Nf4 {[%clk 0:00:51.1]} 32.
Rh2 {[%clk 0:00:45.6]} 32... Kg6 {[%clk 0:00:51.2]} 33. Ke3 {[%clk 0:00:41.7]}
33... h5 {[%clk 0:00:48.4]} 34. Rh1 {[%clk 0:00:40.2]} 34... h4 {[%clk
0:00:48.5]} 35. Kf2 {[%clk 0:00:37.6]} 35... Kf5 {[%clk 0:00:47.3]} 36. Ke3
{[%clk 0:00:37.4]} 36... b5 {[%clk 0:00:46.5]} 37. Rg1 {[%clk 0:00:32.9]} 37...
Rc4 {[%clk 0:00:44.4]} 38. a3 {[%clk 0:00:31.8]} 38... Rc8 {[%clk 0:00:42.9]}
39. Rh1 {[%clk 0:00:31.7]} 39... Rh8 {[%clk 0:00:42.4]} 40. Bd2 {[%clk 0:00:29]}
40... h3 {[%clk 0:00:42]} 41. Kf2 {[%clk 0:00:29.3]} 41... h2 {[%clk 0:00:40.1]}
42. Be3 {[%clk 0:00:18.3]} 42... g4 {[%clk 0:00:35.8]} 43. Bd2 {[%clk
0:00:13.9]} 43... Rh3 {[%clk 0:00:29.6]} 44. fxg4+ {[%clk 0:00:14.2]} 44... Kxg4
{[%clk 0:00:29.6]} 45. Bxf4 {[%clk 0:00:15.1]} 45... Kxf4 {[%clk 0:00:28.9]} 46.
Kg2 {[%clk 0:00:16]} 46... Rh8 {[%clk 0:00:21.5]} 47. Rf1+ {[%clk 0:00:06.1]}
47... Ke4 {[%clk 0:00:21.3]} 48. Kh1 {[%clk 0:00:07]} 48... Kxd4 {[%clk
0:00:20.9]} 49. Rf4+ {[%clk 0:00:01.6]} 49... Kxe5 {[%clk 0:00:20.8]} 50. Rb4
{[%clk 0:00:02.5]} 50... Rb8 {[%clk 0:00:17.8]} 51. Kxh2 {[%clk 0:00:02.4]}
51... d4 {[%clk 0:00:17.4]} 52. Kg2 {[%clk 0:00:02.8]} 52... Ke4 {[%clk
0:00:16.1]} 53. Kf2 {[%clk 0:00:03.7]} 53... e5 {[%clk 0:00:16.3]} 54. b3 {[%clk
0:00:04.1]} 54... axb3 {[%clk 0:00:15.4]} 55. Rxb3 {[%clk 0:00:05]} 55... Kd5
{[%clk 0:00:15.2]} 56. Ke2 {[%clk 0:00:05.2]} 56... e4 {[%clk 0:00:14]} 57. a4
{[%clk 0:00:05.6]} 57... b4 {[%clk 0:00:13.6]} 58. a5 {[%clk 0:00:05.7]} 58...
Kc4 {[%clk 0:00:13.7]} 59. Rb1 {[%clk 0:00:06.3]} 59... Rh8 {[%clk 0:00:10.7]}
60. Rc1+ {[%clk 0:00:06.3]} 60... Kb5 {[%clk 0:00:10.7]} 61. Kf2 {[%clk
0:00:03]} 61... Kxa5 {[%clk 0:00:08.7]} 62. Rc4 {[%clk 0:00:03.3]} 62... Rd8
{[%clk 0:00:04.3]} 63. Rc5+ {[%clk 0:00:03.7]} 63... Ka4 {[%clk 0:00:04.6]} 64.
Re5 {[%clk 0:00:04.6]} 64... e3+ {[%clk 0:00:04.3]} 65. Ke2 {[%clk 0:00:03.3]}
65... Kb3 {[%clk 0:00:05.2]} 66. Kd3 {[%clk 0:00:03.3]} 66... Ka3 {[%clk
0:00:05.1]} 67. Ra5+ {[%clk 0:00:03.3]} 67... Kb3 {[%clk 0:00:05.1]} 68. Rc5
{[%clk 0:00:03.6]} 68... Re8 {[%clk 0:00:05.1]} 69. Ke2 {[%clk 0:00:03.3]} 69...
d3+ {[%clk 0:00:05.5]} 70. Kxd3 {[%clk 0:00:02.2]} 70... e2 {[%clk 0:00:05.8]}
71. Rc2 {[%clk 0:00:01.3]} 71... e1=Q {[%clk 0:00:05.9]} 0-1

[Event "*** Titled Tuesday Blitz"]
[Site "Chess.com"]
[Date "2020.04.28"]
[Round "4"]
[White "Pavlov_Sergey"]
[Black "jlandaw"]
[Result "1-0"]
[WhiteElo "2637"]
[BlackElo "2402"]
[TimeControl "180+1"]
[EndTime "10:42:13 PDT"]
[Termination "Pavlov_Sergey won by resignation"]

1. c4 {[%clk 0:03:00.9]} 1... e5 {[%clk 0:02:48.3]} 2. Nc3 {[%clk 0:03:00.6]}
2... Nc6 {[%clk 0:02:45]} 3. g3 {[%clk 0:03:00.3]} 3... g6 {[%clk 0:02:45.6]} 4.
Bg2 {[%clk 0:03:00.4]} 4... Bg7 {[%clk 0:02:45.9]} 5. Rb1 {[%clk 0:02:56.9]}
5... d6 {[%clk 0:02:18.6]} 6. b4 {[%clk 0:02:56.3]} 6... a6 {[%clk 0:02:19.1]}
7. d3 {[%clk 0:02:46.4]} 7... f5 {[%clk 0:02:17.6]} 8. Bd2 {[%clk 0:02:41.1]}
8... Nf6 {[%clk 0:02:15.7]} 9. Nf3 {[%clk 0:02:39.2]} 9... O-O {[%clk
0:02:14.4]} 10. O-O {[%clk 0:02:39.6]} 10... h6 {[%clk 0:02:14.4]} 11. a4 {[%clk
0:02:38.6]} 11... Be6 {[%clk 0:02:11.6]} 12. b5 {[%clk 0:02:38.1]} 12... axb5
{[%clk 0:02:08.3]} 13. axb5 {[%clk 0:02:38.3]} 13... Ne7 {[%clk 0:02:08.2]} 14.
Ne1 {[%clk 0:02:36.8]} 14... c6 {[%clk 0:02:04.8]} 15. Nc2 {[%clk 0:02:34.5]}
15... d5 {[%clk 0:01:54.6]} 16. bxc6 {[%clk 0:02:31.3]} 16... bxc6 {[%clk
0:01:55.5]} 17. cxd5 {[%clk 0:02:26.3]} 17... cxd5 {[%clk 0:01:55.5]} 18. Nb5
{[%clk 0:02:25.3]} 18... Qd7 {[%clk 0:01:34.6]} 19. Bb4 {[%clk 0:02:13.5]} 19...
Rfb8 {[%clk 0:01:33.3]} 20. Bd6 {[%clk 0:02:08]} 20... Rxb5 {[%clk 0:01:26]} 21.
Rxb5 {[%clk 0:02:07.9]} 21... Qxd6 {[%clk 0:01:26.1]} 22. Qb1 {[%clk 0:02:04.2]}
22... Rc8 {[%clk 0:01:19]} 23. Rc1 {[%clk 0:02:03.1]} 23... Nc6 {[%clk
0:01:15.6]} 24. e3 {[%clk 0:01:59.7]} 24... Nd7 {[%clk 0:01:13.4]} 25. Nb4
{[%clk 0:01:52.3]} 25... e4 {[%clk 0:00:55]} 26. dxe4 {[%clk 0:01:21.3]} 26...
fxe4 {[%clk 0:00:44.5]} 27. f3 {[%clk 0:00:55.4]} 27... exf3 {[%clk 0:00:33.1]}
28. Bxf3 {[%clk 0:00:55.5]} 28... Nf6 {[%clk 0:00:29.8]} 29. Nd3 {[%clk
0:00:46.3]} 29... Bf5 {[%clk 0:00:26.9]} 30. Qb3 {[%clk 0:00:42.2]} 30... Kh7
{[%clk 0:00:23.9]} 31. Nf4 {[%clk 0:00:41.5]} 31... Ne5 {[%clk 0:00:19.8]} 32.
Rxc8 {[%clk 0:00:37.5]} 32... Nxf3+ {[%clk 0:00:18.9]} 33. Kf2 {[%clk
0:00:37.9]} 33... Ne4+ {[%clk 0:00:15.9]} 34. Kg2 {[%clk 0:00:33.5]} 34... Bxc8
{[%clk 0:00:15.7]} 35. Rxd5 {[%clk 0:00:33.2]} 35... Qa6 {[%clk 0:00:09.4]} 36.
Kxf3 {[%clk 0:00:31.3]} 36... Ng5+ {[%clk 0:00:04.5]} 37. Kf2 {[%clk 0:00:28.5]}
37... Bb7 {[%clk 0:00:04.4]} 38. Rd7 {[%clk 0:00:25.5]} 38... Ne4+ {[%clk
0:00:04.1]} 39. Kg1 {[%clk 0:00:20.5]} 39... Qa1+ {[%clk 0:00:03.2]} 40. Rd1
{[%clk 0:00:21.1]} 40... Qf6 {[%clk 0:00:02]} 41. Qxb7 {[%clk 0:00:20.1]} 41...
Ng5 {[%clk 0:00:02.3]} 42. h4 {[%clk 0:00:19]} 42... Nf7 {[%clk 0:00:02]} 43.
Rd7 {[%clk 0:00:18]} 43... Ne5 {[%clk 0:00:01.9]} 44. Re7 {[%clk 0:00:17.8]}
44... Ng4 {[%clk 0:00:02.5]} 45. Rc7 {[%clk 0:00:14.7]} 45... Qa1+ {[%clk
0:00:02.9]} 46. Kg2 {[%clk 0:00:14]} 46... Nxe3+ {[%clk 0:00:03.5]} 47. Kf3
{[%clk 0:00:13.1]} 47... Nf5 {[%clk 0:00:04]} 48. Ne6 {[%clk 0:00:12.1]} 48...
Nd4+ {[%clk 0:00:03.5]} 49. Nxd4 {[%clk 0:00:11.2]} 49... Qxd4 {[%clk
0:00:04.4]} 50. Qe4 {[%clk 0:00:10.3]} 50... Qf6+ {[%clk 0:00:04.8]} 51. Kg2
{[%clk 0:00:09.9]} 51... h5 {[%clk 0:00:04.6]} 52. Qf4 {[%clk 0:00:08.5]} 52...
Qxf4 {[%clk 0:00:04.3]} 53. gxf4 {[%clk 0:00:08.4]} 53... Kh6 {[%clk 0:00:05.2]}
54. Kf3 {[%clk 0:00:08.8]} 54... Bf6 {[%clk 0:00:05.4]} 55. Kg3 {[%clk
0:00:08.9]} 55... Bd8 {[%clk 0:00:05.3]} 56. Rc6 {[%clk 0:00:09.2]} 56... Kg7
{[%clk 0:00:05.1]} 57. Kh3 {[%clk 0:00:08.5]} 57... Bf6 {[%clk 0:00:04.9]} 58.
Kg3 {[%clk 0:00:08.7]} 58... Be7 {[%clk 0:00:05.1]} 59. Rc7 {[%clk 0:00:08.5]}
59... Kf6 {[%clk 0:00:05.3]} 60. Rb7 {[%clk 0:00:08.9]} 60... Bd6 {[%clk
0:00:05.6]} 61. Rb6 {[%clk 0:00:09]} 61... Ke6 {[%clk 0:00:06.1]} 62. Kf3 {[%clk
0:00:09.1]} 62... Kd5 {[%clk 0:00:06.3]} 63. Rb5+ {[%clk 0:00:08]} 63... Ke6
{[%clk 0:00:06.6]} 64. Rg5 {[%clk 0:00:08.5]} 64... Kf6 {[%clk 0:00:07]} 65. f5
{[%clk 0:00:08.8]} 65... gxf5 {[%clk 0:00:07.2]} 66. Rxh5 {[%clk 0:00:09.3]}
66... Be7 {[%clk 0:00:06.9]} 67. Rh7 {[%clk 0:00:08.9]} 67... Bf8 {[%clk
0:00:06.3]} 68. Rb7 {[%clk 0:00:08.3]} 68... Kg6 {[%clk 0:00:04.7]} 69. Rb6+
{[%clk 0:00:07.8]} 69... Kh5 {[%clk 0:00:03.8]} 70. Rf6 {[%clk 0:00:07]} 70...
Be7 {[%clk 0:00:01.7]} 71. Rxf5+ {[%clk 0:00:07]} 71... Kxh4 {[%clk 0:00:02.3]}
72. Kf4 {[%clk 0:00:05]} 72... Bd6+ {[%clk 0:00:02.4]} 73. Kf3 {[%clk
0:00:05.4]} 73... Bc7 {[%clk 0:00:02.7]} 74. Rd5 {[%clk 0:00:05]} 74... Bb8
{[%clk 0:00:02.7]} 75. Rc5 {[%clk 0:00:05.1]} 75... Bd6 {[%clk 0:00:03]} 76. Rd5
{[%clk 0:00:05.3]} 76... Be7 {[%clk 0:00:03.5]} 77. Rd7 {[%clk 0:00:05.4]} 77...
Bg5 {[%clk 0:00:04.1]} 78. Rh7+ {[%clk 0:00:05]} 78... Bh6 {[%clk 0:00:04.8]}
79. Rxh6+ {[%clk 0:00:05.3]} 79... Kg5 {[%clk 0:00:05.7]} 80. Ra6 {[%clk
0:00:05.8]} 80... Kf5 {[%clk 0:00:06.6]} 81. Ra5+ {[%clk 0:00:06.2]} 81... Kg6
{[%clk 0:00:07.5]} 82. Kf4 {[%clk 0:00:06.3]} 82... Kg7 {[%clk 0:00:08.4]} 83.
Ra6 {[%clk 0:00:06.6]} 83... Kh7 {[%clk 0:00:09.3]} 1-0

[Event "*** Titled Tuesday Blitz"]
[Site "Chess.com"]
[Date "2020.04.28"]
[Round "4"]
[White "hongnhung1234"]
[Black "realmadridtv"]
[Result "1-0"]
[WhiteElo "2210"]
[BlackElo "2311"]
[TimeControl "180+1"]
[EndTime "10:42:17 PDT"]
[Termination "hongnhung1234 won by resignation"]

1. e4 {[%clk 0:03:00.9]} 1... e5 {[%clk 0:02:59.9]} 2. Nf3 {[%clk 0:03:00.5]}
2... Nc6 {[%clk 0:03:00.2]} 3. d4 {[%clk 0:03:00.9]} 3... exd4 {[%clk
0:03:00.1]} 4. Nxd4 {[%clk 0:03:01.8]} 4... Nf6 {[%clk 0:03:00.7]} 5. Nc3 {[%clk
0:03:01.6]} 5... Bb4 {[%clk 0:02:59.6]} 6. Nxc6 {[%clk 0:03:01.7]} 6... bxc6
{[%clk 0:03:00.5]} 7. Bd3 {[%clk 0:03:01.8]} 7... d5 {[%clk 0:03:00.8]} 8. exd5
{[%clk 0:03:02.7]} 8... O-O {[%clk 0:03:00.9]} 9. O-O {[%clk 0:03:02.9]} 9...
Bg4 {[%clk 0:03:01.1]} 10. Be2 {[%clk 0:02:57.2]} 10... Bxe2 {[%clk 0:03:01]}
11. Qxe2 {[%clk 0:02:58.1]} 11... cxd5 {[%clk 0:03:01.6]} 12. h3 {[%clk
0:02:50.7]} 12... Bxc3 {[%clk 0:02:57.1]} 13. bxc3 {[%clk 0:02:50.6]} 13... Ne4
{[%clk 0:02:56.3]} 14. Qd3 {[%clk 0:02:43.4]} 14... Qf6 {[%clk 0:02:53.1]} 15.
Ba3 {[%clk 0:02:33.2]} 15... Rfd8 {[%clk 0:02:42.4]} 16. c4 {[%clk 0:02:30.6]}
16... Qc6 {[%clk 0:01:57]} 17. cxd5 {[%clk 0:02:19.2]} 17... Qxd5 {[%clk
0:01:57.4]} 18. Rad1 {[%clk 0:02:05.8]} 18... Qxd3 {[%clk 0:01:54.1]} 19. cxd3
{[%clk 0:02:06.7]} 19... Nc3 {[%clk 0:01:51.4]} 20. Rd2 {[%clk 0:02:05.2]} 20...
Nb5 {[%clk 0:01:46.7]} 21. Bc5 {[%clk 0:02:01.6]} 21... Rd5 {[%clk 0:01:44.9]}
22. d4 {[%clk 0:01:56.9]} 22... Rad8 {[%clk 0:01:43.6]} 23. Rb1 {[%clk
0:01:44.8]} 23... Nc3 {[%clk 0:01:34.9]} 24. Rb7 {[%clk 0:01:38.4]} 24... Ne4
{[%clk 0:01:26.5]} 25. Rc2 {[%clk 0:01:37.6]} 25... Nxc5 {[%clk 0:01:06.1]} 26.
Rxc5 {[%clk 0:01:36.5]} 26... Rxd4 {[%clk 0:01:04.7]} 27. Rcxc7 {[%clk
0:01:35.2]} 27... Rf4 {[%clk 0:00:59.6]} 28. Rxa7 {[%clk 0:01:31.4]} 28... h6
{[%clk 0:00:52.3]} 29. g3 {[%clk 0:01:27.8]} 29... Rf6 {[%clk 0:00:51.7]} 30.
Rc2 {[%clk 0:01:19.2]} 30... Rd1+ {[%clk 0:00:48.4]} 31. Kg2 {[%clk 0:01:18.3]}
31... Ra1 {[%clk 0:00:47.9]} 32. a4 {[%clk 0:01:16.1]} 32... g6 {[%clk
0:00:41.4]} 33. a5 {[%clk 0:01:13.2]} 33... Rf5 {[%clk 0:00:38.2]} 34. a6 {[%clk
0:01:11]} 34... Rf6 {[%clk 0:00:38.6]} 35. Ra8+ {[%clk 0:01:10.8]} 35... Kg7
{[%clk 0:00:36.6]} 36. a7 {[%clk 0:01:10.6]} 36... Rfa6 {[%clk 0:00:35.7]} 37.
Rc7 {[%clk 0:01:07.9]} 37... R1a2 {[%clk 0:00:34.2]} 38. Kf3 {[%clk 0:00:58.2]}
38... Rf6+ {[%clk 0:00:30.8]} 39. Ke4 {[%clk 0:00:49.2]} 39... Rfxf2 {[%clk
0:00:30.4]} 40. Rb8 {[%clk 0:00:34.7]} 40... Rfe2+ {[%clk 0:00:15.2]} 41. Kd5
{[%clk 0:00:33.4]} 41... Red2+ {[%clk 0:00:13.1]} 42. Kc6 {[%clk 0:00:25.1]}
42... Rdc2+ {[%clk 0:00:12.8]} 43. Kb6 {[%clk 0:00:20]} 43... Rxc7 {[%clk
0:00:12.8]} 44. Kxc7 {[%clk 0:00:20.1]} 44... Rxa7+ {[%clk 0:00:13.1]} 45. Kd6
{[%clk 0:00:20.5]} 45... Ra3 {[%clk 0:00:13.3]} 46. g4 {[%clk 0:00:17.1]} 46...
Rxh3 {[%clk 0:00:12.9]} 47. Ke5 {[%clk 0:00:17.4]} 47... Re3+ {[%clk 0:00:11.8]}
48. Kf4 {[%clk 0:00:17.4]} 48... Re6 {[%clk 0:00:11.3]} 49. Rb7 {[%clk
0:00:17.1]} 49... Kf6 {[%clk 0:00:10.5]} 50. Rb5 {[%clk 0:00:16.6]} 50... Ra6
{[%clk 0:00:10.1]} 51. Kg3 {[%clk 0:00:14.7]} 51... Ra3+ {[%clk 0:00:09.5]} 52.
Kf2 {[%clk 0:00:11.8]} 52... Rb3 {[%clk 0:00:09.1]} 53. Rxb3 {[%clk 0:00:11.5]}
53... Kg5 {[%clk 0:00:08.4]} 54. Kg3 {[%clk 0:00:11.4]} 54... f6 {[%clk
0:00:05.6]} 55. Rb5+ {[%clk 0:00:11.1]} 55... f5 {[%clk 0:00:06.5]} 56. gxf5
{[%clk 0:00:11.5]} 56... gxf5 {[%clk 0:00:07.4]} 57. Kh3 {[%clk 0:00:11.2]}
57... h5 {[%clk 0:00:08.3]} 58. Rb4 {[%clk 0:00:10.5]} 58... h4 {[%clk
0:00:09.2]} 59. Rxh4 {[%clk 0:00:10.1]} 59... f4 {[%clk 0:00:10.1]} 60. Rg4+
{[%clk 0:00:10.3]} 60... Kf5 {[%clk 0:00:09.9]} 61. Rg8 {[%clk 0:00:10.5]} 61...
Ke4 {[%clk 0:00:10.2]} 62. Kg4 {[%clk 0:00:10.7]} 62... f3 {[%clk 0:00:11.1]}
63. Re8+ {[%clk 0:00:10.9]} 63... Kd3 {[%clk 0:00:11.7]} 64. Kxf3 {[%clk
0:00:11.7]} 64... Kd2 {[%clk 0:00:12.6]} 65. Re7 {[%clk 0:00:11.7]} 65... Kd1
{[%clk 0:00:13.5]} 66. Kf2 {[%clk 0:00:12]} 66... Kd2 {[%clk 0:00:14.4]} 67.
Rd7+ {[%clk 0:00:12.4]} 67... Kc2 {[%clk 0:00:15.3]} 68. Ke3 {[%clk 0:00:13.3]}
68... Kc3 {[%clk 0:00:15.6]} 69. Rc7+ {[%clk 0:00:13.5]} 69... Kb4 {[%clk
0:00:16.3]} 70. Kd4 {[%clk 0:00:14.4]} 70... Kb5 {[%clk 0:00:17.2]} 71. Rc1
{[%clk 0:00:14.3]} 71... Kb6 {[%clk 0:00:18.1]} 72. Kd5 {[%clk 0:00:14.6]} 72...
Kb5 {[%clk 0:00:19]} 73. Rb1+ {[%clk 0:00:14.6]} 73... Ka4 {[%clk 0:00:19.6]}
74. Kc5 {[%clk 0:00:15.5]} 74... Ka3 {[%clk 0:00:20.5]} 75. Rb8 {[%clk
0:00:15.5]} 75... Ka2 {[%clk 0:00:21.1]} 76. Kc4 {[%clk 0:00:15.3]} 76... Ka3
{[%clk 0:00:22]} 77. Rb7 {[%clk 0:00:15.5]} 1-0

[Event "*** Titled Tuesday Blitz"]
[Site "Chess.com"]
[Date "2020.04.28"]
[Round "4"]
[White "enriquetejedor"]
[Black "Maghalashvili"]
[Result "0-1"]
[WhiteElo "2518"]
[BlackElo "2794"]
[TimeControl "180+1"]
[EndTime "10:42:23 PDT"]
[Termination "Maghalashvili won by checkmate"]

1. e4 {[%clk 0:02:53.8]} 1... c5 {[%clk 0:02:59.5]} 2. Nf3 {[%clk 0:02:50.7]}
2... d6 {[%clk 0:02:59]} 3. d4 {[%clk 0:02:40]} 3... cxd4 {[%clk 0:02:59.9]} 4.
Nxd4 {[%clk 0:02:40.9]} 4... Nf6 {[%clk 0:02:59.8]} 5. Nc3 {[%clk 0:02:38.9]}
5... a6 {[%clk 0:03:00.2]} 6. f3 {[%clk 0:02:36.1]} 6... e5 {[%clk 0:02:59.8]}
7. Nb3 {[%clk 0:02:35.7]} 7... Be6 {[%clk 0:02:59.1]} 8. Be3 {[%clk 0:02:36.3]}
8... h5 {[%clk 0:02:59]} 9. Qd2 {[%clk 0:02:35.2]} 9... Nbd7 {[%clk 0:02:58.2]}
10. O-O-O {[%clk 0:02:33.8]} 10... Be7 {[%clk 0:02:54.3]} 11. Kb1 {[%clk
0:02:29.5]} 11... Rc8 {[%clk 0:02:51.1]} 12. Nd5 {[%clk 0:02:28.7]} 12... Nxd5
{[%clk 0:02:48]} 13. exd5 {[%clk 0:02:29.6]} 13... Bf5 {[%clk 0:02:47.7]} 14.
Bd3 {[%clk 0:02:27.4]} 14... Bxd3 {[%clk 0:02:43.9]} 15. Qxd3 {[%clk 0:02:28.3]}
15... Bg5 {[%clk 0:02:43.9]} 16. g3 {[%clk 0:02:21.2]} 16... Bxe3 {[%clk
0:02:40.2]} 17. Qxe3 {[%clk 0:02:22.1]} 17... Qb6 {[%clk 0:02:40.1]} 18. Qg5
{[%clk 0:02:11]} 18... g6 {[%clk 0:02:34.2]} 19. f4 {[%clk 0:01:59.5]} 19... Qd8
{[%clk 0:02:32.8]} 20. Qxd8+ {[%clk 0:01:38.1]} 20... Kxd8 {[%clk 0:02:31.2]}
21. Rhf1 {[%clk 0:01:39]} 21... exf4 {[%clk 0:02:20.4]} 22. Rxf4 {[%clk
0:01:38.6]} 22... Ne5 {[%clk 0:02:20.5]} 23. a4 {[%clk 0:01:36.5]} 23... Re8
{[%clk 0:02:17.5]} 24. h3 {[%clk 0:01:28.4]} 24... Rc4 {[%clk 0:02:14.9]} 25.
Rdd4 {[%clk 0:01:27.1]} 25... Rxd4 {[%clk 0:02:13.3]} 26. Nxd4 {[%clk 0:01:28]}
26... Ke7 {[%clk 0:02:08.9]} 27. b3 {[%clk 0:01:24.5]} 27... f5 {[%clk
0:01:58.6]} 28. Ne6 {[%clk 0:01:14]} 28... a5 {[%clk 0:01:56.1]} 29. h4 {[%clk
0:00:59.9]} 29... Kf6 {[%clk 0:01:46.8]} 30. Kc1 {[%clk 0:00:55.2]} 30... Rc8
{[%clk 0:01:38.2]} 31. Kd2 {[%clk 0:00:51.5]} 31... Nd7 {[%clk 0:01:33.6]} 32.
c4 {[%clk 0:00:48.2]} 32... Ke5 {[%clk 0:01:28.8]} 33. Rf3 {[%clk 0:00:29.5]}
33... Nf6 {[%clk 0:01:22.9]} 34. Ng5 {[%clk 0:00:24.3]} 34... Ne4+ {[%clk
0:00:30.3]} 35. Nxe4 {[%clk 0:00:23.6]} 35... fxe4 {[%clk 0:00:29.8]} 36. Rf7
{[%clk 0:00:22.7]} 36... Kd4 {[%clk 0:00:30.1]} 37. Rf6 {[%clk 0:00:15.4]} 37...
Re8 {[%clk 0:00:16.7]} 38. Ke2 {[%clk 0:00:12.1]} 38... Kc3 {[%clk 0:00:15.5]}
39. Rxd6 {[%clk 0:00:04.7]} 39... Kxb3 {[%clk 0:00:15.7]} 40. Rb6+ {[%clk
0:00:04.4]} 40... Kxc4 {[%clk 0:00:15.7]} 41. Rxb7 {[%clk 0:00:04]} 41... Kxd5
{[%clk 0:00:16.1]} 42. Rb5+ {[%clk 0:00:03.4]} 42... Kd4 {[%clk 0:00:16.4]} 43.
Rxa5 {[%clk 0:00:02.3]} 43... Rc8 {[%clk 0:00:16.5]} 44. Ra6 {[%clk 0:00:01.8]}
44... Rc2+ {[%clk 0:00:16.3]} 45. Kf1 {[%clk 0:00:02.4]} 45... Rc1+ {[%clk
0:00:15.7]} 46. Kf2 {[%clk 0:00:02.2]} 46... Rc2+ {[%clk 0:00:15.7]} 47. Kf1
{[%clk 0:00:02.4]} 47... Ra2 {[%clk 0:00:16.6]} 48. Rd6+ {[%clk 0:00:01.8]}
48... Ke3 {[%clk 0:00:15.9]} 49. Rxg6 {[%clk 0:00:02.7]} 49... Kf3 {[%clk
0:00:16.3]} 50. Rf6+ {[%clk 0:00:02.6]} 50... Kxg3 {[%clk 0:00:16.4]} 51. Rf5
{[%clk 0:00:02.8]} 51... Kg4 {[%clk 0:00:15.1]} 52. Re5 {[%clk 0:00:02.6]} 52...
Rxa4 {[%clk 0:00:14.9]} 53. Rg5+ {[%clk 0:00:01.6]} 53... Kxh4 {[%clk
0:00:14.8]} 54. Rg8 {[%clk 0:00:02.2]} 54... Ra2 {[%clk 0:00:14.3]} 55. Rg7
{[%clk 0:00:02]} 55... Kh3 {[%clk 0:00:14]} 56. Re7 {[%clk 0:00:02]} 56... Kg3
{[%clk 0:00:12.3]} 57. Rg7+ {[%clk 0:00:02.9]} 57... Kf3 {[%clk 0:00:12.3]} 58.
Rf7+ {[%clk 0:00:03.2]} 58... Ke3 {[%clk 0:00:12.6]} 59. Rh7 {[%clk 0:00:03.3]}
59... Ra1+ {[%clk 0:00:12.7]} 60. Kg2 {[%clk 0:00:03.7]} 60... Ra5 {[%clk
0:00:11.8]} 61. Re7 {[%clk 0:00:02.9]} 61... Rg5+ {[%clk 0:00:11.7]} 62. Kf1
{[%clk 0:00:02.8]} 62... h4 {[%clk 0:00:11.7]} 63. Rh7 {[%clk 0:00:02.5]} 63...
Rg4 {[%clk 0:00:11.9]} 64. Ra7 {[%clk 0:00:02.8]} 64... Kf3 {[%clk 0:00:11.8]}
65. Rf7+ {[%clk 0:00:02.5]} 65... Rf4 {[%clk 0:00:11.8]} 66. Rg7 {[%clk
0:00:02.8]} 66... e3 {[%clk 0:00:11.8]} 67. Rg6 {[%clk 0:00:02.3]} 67... h3
{[%clk 0:00:11.9]} 68. Rh6 {[%clk 0:00:02]} 68... Kg3+ {[%clk 0:00:11.7]} 69.
Kg1 {[%clk 0:00:02.1]} 69... e2 {[%clk 0:00:11]} 70. Rg6+ {[%clk 0:00:01.9]}
70... Rg4 {[%clk 0:00:11.1]} 71. Re6 {[%clk 0:00:01.6]} 71... Kf3+ {[%clk
0:00:11.1]} 72. Kh2 {[%clk 0:00:01.5]} 72... Re4 {[%clk 0:00:10.9]} 73. Rf6+
{[%clk 0:00:01.4]} 73... Ke3 {[%clk 0:00:11.2]} 74. Kxh3 {[%clk 0:00:02]} 74...
e1=Q {[%clk 0:00:10.8]} 75. Rg6 {[%clk 0:00:02.5]} 75... Rh4+ {[%clk 0:00:09.8]}
76. Kg2 {[%clk 0:00:02.3]} 76... Qf2# {[%clk 0:00:09.9]} 0-1